bitfinex-derivatives/quotes_ETHF0:USTF0_20250214
["timestamp","ask_amount","ask_price","bid_price","bid_amount"]
[1739495806691,1.62060884,2676.1,2676.0,0.74727]
[1739495806874,0.00560884,2676.1,2676.0,0.74727]
[1739495807079,1.6716,2676.5,2676.3,0.74717]
[1739495807080,1.1289,2676.5,2676.3,0.74717]
[1739495807282,1.1289,2676.5,2676.4,0.5512]
[1739495807485,1.87603,2676.5,2676.4,0.5512]
[1739495807982,1.1289,2676.5,2676.1,0.5503]
[1739495808176,1.1289,2676.5,2675.9,3.2078]
[1739495808177,3.2078,2676.3,2675.9,3.759]
[1739495808378,0.5736,2676.2,2675.9,3.759]
[1739495808584,0.74727,2676.0,2675.9,3.759]
[1739495808885,0.71117335,2676.0,2675.9,3.759]
[1739495809088,0.5573,2676.1,2675.9,3.759]
[1739495809296,1.30456,2676.1,2675.9,3.759]
[1739495809485,0.5573,2676.1,2675.9,3.759]
[1739495809681,0.74727,2676.0,2675.9,3.2078]
[1739495809986,1.31887,2676.0,2675.9,3.2078]
[1739495810690,0.5716,2676.0,2675.9,3.2078]
[1739495811087,0.5716,2676.0,2675.9,3.9551]
[1739495811382,4.8238,2676.3,2675.9,3.2078]
[1739495811383,3.2078,2676.3,2675.9,3.2078]
[1739495811588,3.95498,2676.3,2676.0,1.1513]
[1739495811790,0.74722,2676.2,2676.0,0.5552]
[1739495811991,0.74724,2676.1,2676.0,0.5552]
[1739495812182,1.734,2676.2,2676.0,0.5552]
[1739495812386,1.734,2676.2,2675.9,3.2078]
[1739495812591,1.734,2676.2,2676.1,0.74724]
[1739495813089,2.36215,2676.5,2676.2,0.74719]
[1739495813291,0.5457,2676.4,2676.2,0.74719]
[1739495813786,0.5457,2676.4,2676.1,0.5795]
[1739495813991,0.5457,2676.4,2676.2,0.74718]
[1739495814291,0.5457,2676.4,2676.3,0.74718]
[1739495814591,2.1607,2676.4,2676.3,0.74718]
[1739495815087,0.75268884,2676.7,2676.5,0.74713]
[1739495815288,0.75268884,2676.7,2676.6,0.7471]
[1739495815289,1.62060884,2676.7,2676.6,0.7471]
[1739495817890,2.36767884,2676.7,2676.5,3.95491]
[1739495818082,1.62060884,2676.7,2676.5,3.95491]
[1739495818985,0.7471,2676.6,2676.5,3.2078]
[1739495819186,1.1304,2676.6,2676.5,3.2078]
[1739495819386,1.1304,2676.6,2676.5,3.95493]
[1739495820096,0.5863,2676.6,2676.5,3.95493]
[1739495820286,1.62060884,2676.7,2676.5,3.2078]
[1739495820487,0.00560884,2676.7,2676.6,0.7471]
[1739495820688,0.75270884,2676.7,2676.5,3.95491]
[1739495820889,0.00560884,2676.7,2676.5,3.2078]
[1739495821088,0.75269884,2676.7,2676.5,3.2078]
[1739495821289,0.74713,2676.5,2676.4,0.5743]
[1739495823589,1.87751,2676.6,2676.4,1.32144]
[1739495823792,0.00560884,2676.7,2676.5,3.2078]
[1739495823993,0.00560884,2676.7,2676.6,0.7471]
[1739495824390,0.00560884,2676.7,2676.6,1.3046]
[1739495824598,2.1687,2677.1,2676.6,0.5575]
[1739495824804,2.1687,2677.1,2676.9,3.9548]
[1739495825096,2.1687,2677.1,2677.0,0.5577]
[1739495825297,0.5899,2677.3,2677.0,0.5577]
[1739495825492,2.2049,2677.3,2677.0,1.1186]
[1739495825695,2.2049,2677.3,2677.2,0.74693]
[1739495825890,2.2049,2677.3,2677.0,1.1186]
[1739495825891,2.2049,2677.3,2677.1,0.74694]
[1739495826089,2.2049,2677.3,2677.0,1.1186]
[1739495826299,1.615,2677.3,2677.2,0.74693]
[1739495826499,1.615,2677.3,2677.1,0.74695]
[1739495826801,1.615,2677.3,2677.2,0.74693]
[1739495827002,0.43573527,2677.4,2677.3,0.74691]
[1739495827299,0.00560884,2677.4,2677.3,0.74691]
[1739495827701,0.00560884,2677.4,2677.3,3.68518896]
[1739495827894,0.00560884,2677.4,2677.3,4.28488896]
[1739495829600,0.00560884,2677.4,2677.3,3.53797896]
[1739495829790,0.00560884,2677.4,2677.3,3.68518896]
[1739495830197,0.00560884,2677.4,2677.3,2.93827896]
[1739495830405,0.00560884,2677.4,2677.3,3.68518896]
[1739495830789,0.00560884,2677.4,2677.3,2.93827896]
[1739495831195,0.00560884,2677.4,2677.3,0.74691]
[1739495831502,0.00560884,2677.4,2677.2,3.2078]
[1739495831705,0.00560884,2677.4,2677.3,0.74691]
[1739495832200,0.00560884,2677.4,2677.2,6.89072]
[1739495832903,0.74691,2677.3,2677.2,6.1438]
[1739495834096,0.74699,2677.0,2676.9,0.00560884]
[1739495834297,8.50906896,2677.0,2676.9,0.00560884]
[1739495834796,0.74714,2676.5,2676.3,3.2078]
[1739495835106,8.25299897,2677.0,2676.3,3.2078]
[1739495835107,0.74716,2676.4,2676.3,3.2078]
[1739495835300,2.36814,2676.5,2676.3,3.2078]
[1739495835503,2.36815,2676.5,2676.3,3.2078]
[1739495835698,1.621,2676.5,2676.3,3.2078]
[1739495836005,0.74721,2676.2,2676.1,0.00560884]
[1739495838113,0.5926,2676.3,2676.1,0.00560884]
[1739495838408,1.626,2676.2,2676.1,0.00560884]
[1739495838609,2.37321,2676.2,2676.1,0.00560884]
[1739495842615,2.43396445,2676.2,2676.1,0.00560884]
[1739495843113,2.43396525,2676.2,2676.1,0.00560884]
[1739495844816,2.43399669,2676.2,2676.1,0.00560884]
[1739495845917,2.37321,2676.2,2676.1,0.00560884]
[1739495848314,0.74721,2676.2,2676.1,0.00560884]
[1739495848515,2.36921,2676.2,2676.1,0.00560884]
[1739495852922,2.36621,2676.2,2676.1,0.00560884]
[1739495853919,0.74721,2676.2,2676.1,0.00560884]
[1739495854126,2.36621,2676.2,2676.1,0.00560884]
[1739495856226,3.8004,2676.4,2676.1,0.00560884]
[1739495856424,1.618,2676.2,2676.1,0.75284884]
[1739495856924,1.618,2676.2,2676.1,1.31404884]
[1739495857419,3.2078,2676.4,2676.1,1.31402884]
[1739495857620,3.767,2676.8,2676.1,3.5050878]
[1739495857820,2.36608,2676.7,2676.4,0.74714]
[1739495858020,1.619,2676.7,2676.5,1.88122]
[1739495858221,2.36608,2676.7,2676.5,1.88122]
[1739495858424,2.36608,2676.7,2676.5,1.1341]
[1739495859222,0.7471,2676.6,2676.5,1.1341]
[1739495861927,1.619,2676.7,2676.4,2.936]
[1739495862129,1.33163,2676.5,2676.4,2.936]
[1739495862334,4.53943,2676.5,2676.4,2.936]
[1739495863125,4.60025912,2676.5,2676.4,2.936]
[1739495863331,0.74721,2676.2,2676.1,0.00560884]
[1739495863529,5.57601,2676.2,2676.1,0.00560884]
[1739495863933,6.14241,2676.2,2676.1,0.00560884]
[1739495864126,6.14241,2676.2,2675.6,0.5591]
[1739495864127,5.45601837,2676.2,2675.6,0.5591]
[1739495864327,3.2078,2675.7,2675.2,0.5934]
[1739495864525,0.74746,2675.3,2675.2,0.5934]
[1739495864926,0.74745,2675.4,2675.2,0.5934]
[1739495868437,0.74743,2675.5,2675.2,0.5934]
[1739495868829,0.74744,2675.4,2675.2,0.5934]
[1739495870232,0.74746,2675.3,2675.2,0.5934]
[1739495870623,2.73110884,2675.6,2675.2,0.5934]
[1739495870828,0.74746,2675.3,2675.2,0.5934]
[1739495872634,3.2078,2675.4,2675.2,0.5934]
[1739495872830,0.74745,2675.4,2675.2,0.5934]
[1739495873030,0.74746,2675.3,2675.2,0.5934]
[1739495874228,0.74749,2675.2,2675.1,0.5591]
[1739495874529,0.74752,2675.1,2675.0,0.00560884]
[1739495877828,0.74744,2675.4,2675.1,0.74751]
[1739495878138,0.74751,2675.2,2675.0,0.00560884]
[1739495878338,0.74751,2675.2,2675.0,0.75314884]
[1739495878539,0.74751,2675.2,2675.0,1.30684884]
[1739495878738,2.36748,2675.3,2675.0,1.30684884]
[1739495879436,2.36749,2675.3,2675.0,1.30684884]
[1739495879635,3.2078,2675.5,2675.4,0.74744]
[1739495879837,3.2078,2675.5,2675.2,2.93827896]
[1739495880034,2.37298884,2675.6,2675.3,1.31145]
[1739495880238,0.74742,2675.5,2675.3,0.564]
[1739495880435,2.37299884,2675.6,2675.4,0.5439]
[1739495881236,0.74741,2675.5,2675.4,0.5439]
[1739495881541,2.37299884,2675.6,2675.3,1.31146]
[1739495883339,0.00560884,2675.6,2675.5,3.95521]
[1739495884436,0.00560884,2675.6,2675.5,3.2078]
[1739495884643,0.75298884,2675.6,2675.5,3.2078]
[1739495884832,0.00560884,2675.6,2675.3,0.564]
[1739495885034,0.00560884,2675.6,2675.5,0.74741]
[1739495885236,0.00560884,2675.6,2675.5,1.31021]
[1739495887246,0.00560884,2675.6,2675.5,4.24848896]
[1739495887451,1.624,2676.0,2675.9,0.7473]
[1739495887744,1.624,2676.2,2676.0,0.74725]
[1739495887946,3.2078,2676.4,2676.2,0.74721]
[1739495888139,1.624,2676.3,2676.1,0.74724]
[1739495888748,3.95497,2676.4,2676.0,1.6726]
[1739495888937,3.95497,2676.4,2676.1,0.74724]
[1739495888938,4.8328,2676.4,2676.1,0.74724]
[1739495889145,0.74719,2676.3,2676.0,2.41986]
[1739495889343,0.74719,2676.3,2676.1,40.8]
[1739495889543,4.8328,2676.4,2676.0,1.6726]
[1739495889746,0.74724,2676.1,2676.0,1.6726]
[1739495890146,5.3915,2676.4,2676.0,1.6726]
[1739495890450,0.74723,2676.2,2676.0,1.6726]
[1739495890646,0.74721,2676.3,2676.0,2.41986]
[1739495890847,4.8328,2676.4,2676.0,1.6726]
[1739495891045,4.8328,2676.4,2676.2,0.74721]
[1739495891247,5.57996,2676.4,2676.2,0.74721]
[1739495891451,4.8328,2676.4,2676.0,1.6726]
[1739495891846,5.57997,2676.4,2676.1,0.74723]
[1739495892041,0.7472,2676.3,2676.0,2.41986]
[1739495892347,4.8328,2676.4,2676.0,1.6726]
[1739495892651,4.8328,2676.4,2676.2,0.74719]
[1739495893148,0.7472,2676.3,2676.0,2.41985]
[1739495893748,3.2078,2676.4,2676.0,1.6726]
[1739495893951,0.74723,2676.2,2676.0,1.6726]
[1739495894547,0.7472,2676.3,2676.1,0.74723]
[1739495895443,0.7472,2676.3,2676.0,2.41985]
[1739495896049,3.2078,2676.4,2676.0,1.1032]
[1739495896243,3.2078,2676.4,2675.9,3.2078]
[1739495896444,0.74735,2675.7,2675.6,1.1791]
[1739495896756,2.37133,2675.8,2675.6,1.1791]
[1739495896946,1.624,2675.8,2675.6,1.1791]
[1739495897250,1.624,2675.8,2675.7,0.74735]
[1739495897445,1.121,2675.9,2675.7,0.74735]
[1739495897652,2.747,2675.9,2675.7,0.74735]
[1739495897854,3.4943,2675.9,2675.6,1.92646]
[1739495898047,0.74735,2675.7,2675.6,1.1791]
[1739495898248,2.747,2675.9,2675.6,1.1791]
[1739495898452,0.74734,2675.8,2675.6,1.1791]
[1739495898752,3.49431,2675.9,2675.6,1.92646]
[1739495898955,2.747,2675.9,2675.6,1.1791]
[1739495899147,0.74739,2675.6,2675.3,3.95525]
[1739495899449,2.747,2675.9,2675.3,7.2791]
[1739495899649,0.544,2675.9,2675.8,0.74732]
[1739495899953,1.627,2676.0,2675.8,0.74732]
[1739495900152,1.627,2676.0,2675.9,0.5689]
[1739495900651,1.627,2676.0,2675.9,1.3162]
[1739495900850,1.627,2676.0,2675.9,0.5689]
[1739495901053,2.37427,2676.0,2675.9,0.5689]
[1739495901353,0.7473,2675.9,2675.8,0.5956]
[1739495901856,1.627,2676.0,2675.7,2.936]
[1739495902042,0.74732,2675.8,2675.7,2.936]
[1739495904354,1.31402,2675.8,2675.7,2.936]
[1739495906149,1.31402,2675.8,2675.6,3.2078]
[1739495906357,1.33415,2675.7,2675.6,3.2078]
[1739495906653,0.74739,2675.6,2675.4,3.523]
[1739495907053,2.37539,2675.6,2675.4,3.523]
[1739495907447,1.628,2675.6,2675.4,3.523]
[1739495907755,1.628,2675.6,2675.5,0.74741]
[1739495907958,2.3763,2675.9,2675.6,0.74736]
[1739495908657,1.7055,2676.2,2675.7,1.31814]
[1739495908862,0.74728,2676.0,2675.7,1.31814]
[1739495909051,1.7055,2676.2,2675.7,1.31814]
[1739495909052,1.88072,2676.2,2676.0,0.74727]
[1739495909250,0.5868,2676.2,2675.8,0.5422]
[1739495909451,1.32475884,2676.5,2676.0,3.2078]
[1739495909757,1.32475884,2676.5,2676.2,0.74721]
[1739495910954,0.57760884,2676.5,2676.0,3.2078]
[1739495911254,0.00560884,2676.5,2676.4,0.74716]
[1739495911451,0.00560884,2676.5,2676.4,0.5469]
[1739495912157,0.00560884,2676.5,2676.3,3.2078]
[1739495912359,0.00560884,2676.5,2676.0,3.2078]
[1739495912857,0.74724,2676.1,2676.0,3.2078]
[1739495913460,0.74723,2676.2,2676.0,3.2078]
[1739495913652,1.87363,2676.2,2676.0,3.2078]
[1739495913859,0.74724,2676.1,2676.0,3.2078]
[1739495916250,1.1264,2676.2,2676.0,3.2078]
[1739495916450,1.628,2676.2,2676.0,3.95505]
[1739495916647,1.628,2676.2,2676.1,0.5889]
[1739495917252,1.628,2676.2,2676.1,1.33614]
[1739495917458,2.19010884,2676.5,2676.1,0.5889]
[1739495917655,2.19010884,2676.5,2676.4,0.74716]
[1739495917856,2.19010884,2676.5,2676.3,0.74717]
[1739495918163,1.63360884,2676.5,2676.4,0.74716]
[1739495918465,0.00560884,2676.5,2676.4,0.74716]
[1739495918658,0.00560884,2676.5,2676.3,0.6005]
[1739495919055,0.00560884,2676.5,2676.4,0.74716]
[1739495919255,0.00560884,2676.5,2676.3,1.34767]
[1739495920161,0.00560884,2676.5,2676.3,4.55547]
[1739495920662,0.75273884,2676.5,2676.3,4.55547]
[1739495920865,0.00560884,2676.5,2676.3,3.8083]
[1739495921159,0.00560884,2676.5,2676.2,0.5657]
[1739495921160,0.74716,2676.4,2676.2,0.74721]
[1739495921462,0.74716,2676.4,2676.1,2.52952]
[1739495921663,0.74716,2676.4,2676.2,0.74721]
[1739495921863,0.00560884,2676.5,2676.1,1.7823]
[1739495922159,0.00560884,2676.5,2676.3,0.74717]
[1739495922360,0.00560884,2676.5,2676.3,0.74716]
[1739495923151,0.00560884,2676.5,2676.2,0.7472]
[1739495923357,0.75274884,2676.5,2676.3,0.74718]
[1739495923564,0.00560884,2676.5,2676.1,1.7823]
[1739495923757,0.00560884,2676.5,2676.3,0.74717]
[1739495923956,0.00560884,2676.5,2676.1,1.7823]
[1739495924350,0.00560884,2676.5,2676.4,0.74716]
[1739495928666,0.00560884,2676.5,2676.3,44.0078]
[1739495928865,0.74716,2676.4,2676.3,3.2078]
[1739495929057,0.74718,2676.3,2676.2,2.936]
[1739495929257,0.00560884,2676.5,2676.2,2.936]
[1739495929559,0.74718,2676.3,2676.2,2.936]
[1739495929763,0.57190884,2676.5,2676.1,1.1845]
[1739495930162,0.00560884,2676.5,2676.4,0.74716]
[1739495930670,1.63060884,2676.5,2676.4,0.74716]
[1739495931067,1.63060884,2676.5,2676.3,3.2078]
[1739495931269,1.63060884,2676.5,2676.1,1.7738]
[1739495931971,2.37773884,2676.5,2676.3,0.74717]
[1739495932170,1.63060884,2676.5,2676.1,1.7738]
[1739495932371,2.37775884,2676.5,2676.3,0.74718]
[1739495932866,1.63060884,2676.5,2676.1,1.7738]
[1739495933070,0.7472,2676.3,2676.1,2.52103]
[1739495933970,1.63060884,2676.5,2676.1,1.7738]
[1739495934172,1.63060884,2676.5,2676.3,0.74717]
[1739495934765,1.63060884,2676.5,2676.4,0.74716]
[1739495935076,0.00560884,2676.5,2676.4,0.74716]
[1739495937568,0.75273884,2676.5,2676.3,3.95496]
[1739495938771,0.00560884,2676.5,2676.4,0.74716]
[1739495950182,3.2078,2677.5,2676.4,2.93827896]
[1739495950384,0.6004,2677.2,2677.1,0.74696]
[1739495950579,1.618,2677.7,2677.0,4.08057896]
[1739495950779,0.74682,2677.7,2677.2,3.2078]
[1739495950977,2.36482,2677.7,2677.2,3.2078]
[1739495951176,2.36482,2677.7,2677.4,0.74687]
[1739495951683,1.62360884,2677.7,2677.5,0.74684]
[1739495952086,1.62360884,2677.7,2677.2,3.21340884]
[1739495952087,2.37040884,2677.7,2677.4,0.74686]
[1739495952274,1.62360884,2677.7,2677.2,3.21340884]
[1739495952680,2.37041884,2677.7,2677.4,0.74687]
[1739495953683,1.62360884,2677.7,2677.5,0.74685]
[1739495953872,0.00560884,2677.7,2677.6,0.74682]
[1739495954581,0.75239884,2677.7,2677.6,0.5636]
[1739495954883,0.75239884,2677.7,2677.5,3.2078]
[1739495955476,0.00560884,2677.7,2677.5,3.2078]
[1739495955684,0.00560884,2677.7,2677.5,3.95465]
[1739495956079,0.00560884,2677.7,2677.5,3.2078]
[1739495956279,0.75240884,2677.7,2677.5,3.2078]
[1739495956783,0.00560884,2677.7,2677.3,4.07497896]
[1739495956984,0.75241884,2677.7,2677.4,0.74685]
[1739495957184,0.74682,2677.6,2677.3,4.82186896]
[1739495957582,0.75241884,2677.7,2677.4,0.74687]
[1739495957781,0.74683,2677.6,2677.3,4.82187896]
[1739495957987,0.74684,2677.6,2677.3,1.88359]
[1739495958183,1.1445,2677.5,2677.3,0.7469]
[1739495958383,1.1445,2677.5,2677.2,3.21340884]
[1739495958384,1.1445,2677.5,2677.4,0.74688]
[1739495958584,0.5922,2677.5,2677.4,0.74688]
[1739495958788,0.00560884,2677.7,2677.6,0.74682]
[1739495960281,3.2078,2678.2,2677.6,3.49477896]
[1739495960486,4.8238,2678.2,2678.0,0.74669]
[1739495961089,4.8238,2678.2,2677.6,3.49477896]
[1739495961285,4.8238,2678.2,2678.0,0.74669]
[1739495961483,4.82750329,2678.2,2678.0,0.74669]
[1739495962184,5.57416329,2678.2,2678.0,0.74669]
[1739495962386,4.82750329,2678.2,2678.0,0.74669]
[1739495962787,5.57416329,2678.2,2678.0,0.74669]
[1739495963094,0.74673,2678.0,2677.7,0.74678]
[1739495963493,4.82750329,2678.2,2677.6,0.5565]
[1739495963694,0.5623,2677.9,2677.8,0.74675]
[1739495965806,0.5623,2677.9,2677.6,3.49477896]
[1739495966003,0.5623,2677.9,2677.8,0.74677]
[1739495972008,0.74677,2677.8,2677.7,3.2078]
[1739495972209,3.48417,2677.8,2677.7,3.2078]
[1739495973513,3.91439186,2677.8,2677.7,3.2078]
[1739495975511,3.16762186,2677.8,2677.3,3.8074]
[1739495975717,0.74682,2677.6,2677.4,0.74687]
[1739495975918,0.74683,2677.6,2677.3,3.8074]
[1739495976112,0.74687,2677.5,2677.2,0.75252884]
[1739495976315,0.5441,2677.4,2677.2,0.75252884]
[1739495976912,0.74691,2677.3,2677.2,0.00560884]
[1739495977212,2.1581,2677.4,2677.2,0.00560884]
[1739495977413,1.31531,2677.3,2677.2,0.00560884]
[1739495978109,1.90851,2677.3,2677.2,0.00560884]
[1739495978317,1.1616,2677.3,2677.2,0.00560884]
[1739495978910,1.90851,2677.3,2677.2,0.00560884]
[1739495980823,1.1616,2677.3,2677.2,0.00560884]
[1739495981318,1.90851,2677.3,2677.2,0.00560884]
[1739495981720,1.1616,2677.3,2677.2,0.00560884]
[1739495982118,1.90851,2677.3,2677.2,0.00560884]
[1739495982425,7.90851,2677.3,2677.2,0.00560884]
[1739495982619,0.74709,2676.7,2676.4,4.53554]
[1739495983121,1.616,2676.8,2676.4,3.7884]
[1739495983319,1.616,2676.8,2676.7,0.74707]
[1739495984021,1.31220884,2677.0,2676.8,0.74704]
[1739495984022,1.616,2676.9,2676.8,0.74704]
[1739495984221,1.616,2676.9,2676.8,1.34634]
[1739495984426,1.616,2676.9,2676.8,1.93064]
[1739495988419,1.616,2676.9,2676.8,1.1836]
[1739495988632,2.36302,2676.9,2676.7,3.2078]
[1739495988922,0.5477,2676.8,2676.7,3.2078]
[1739495989118,1.29474,2676.8,2676.7,3.2078]
[1739495989318,2.43904,2676.8,2676.7,3.2078]
[1739495990230,1.692,2676.8,2676.7,3.95487]
[1739495990433,0.5477,2676.8,2676.7,3.95487]
[1739495991325,0.5477,2676.8,2676.7,3.2078]
[1739495991528,0.5477,2676.8,2676.7,3.95487]
[1739495991728,1.616,2676.9,2676.8,0.74704]
[1739495991926,0.74704,2676.8,2676.7,3.2078]
[1739495992229,0.5965,2676.8,2676.7,3.95487]
[1739495992828,1.616,2676.9,2676.8,0.74704]
[1739495993023,1.616,2676.9,2676.8,1.31134]
[1739495993226,2.36302,2676.9,2676.8,0.5643]
[1739495993422,0.74704,2676.8,2676.7,3.2078]
[1739495993733,1.34354,2676.8,2676.7,3.2078]
[1739495994929,0.5965,2676.8,2676.7,3.95487]
[1739495995724,1.619,2676.9,2676.8,0.74704]
[1739495996123,1.619,2676.9,2676.7,3.95485]
[1739495997422,1.619,2676.9,2676.7,3.2078]
[1739495997628,1.619,2676.9,2676.8,0.74704]
[1739495997828,1.619,2676.9,2676.7,3.95485]
[1739495998435,2.36602,2676.9,2676.7,3.95485]
[1739495998930,2.36602,2676.9,2676.7,3.2078]
[1739495999329,2.36602,2676.9,2676.7,3.95487]
[1739495999836,0.74704,2676.8,2676.7,3.2078]
[1739496000036,0.7471,2676.6,2676.5,0.58470884]
[1739496000335,0.7471,2676.6,2676.5,0.00560884]
[1739496000725,0.5739,2676.6,2676.2,3.2078]
[1739496000928,0.5739,2676.6,2675.8,5.87427896]
[1739496000929,1.619,2676.5,2675.9,4.50187]
[1739496001131,0.74721,2676.3,2675.9,4.50187]
[1739496001330,3.2078,2676.4,2675.9,0.5468]
[1739496001531,0.74727,2676.0,2675.9,0.5468]
[1739496003026,2.36726,2676.1,2675.9,0.5468]
[1739496003233,1.62,2676.1,2675.9,0.5468]
[1739496003433,1.62,2676.1,2675.9,1.29409]
[1739496003633,2.36724,2676.1,2675.9,0.5468]
[1739496003832,3.95497,2676.4,2676.1,0.74722]
[1739496004038,4.8288,2676.4,2675.9,4.3555]
[1739496004335,4.8288,2676.4,2676.2,0.74719]
[1739496004631,1.621,2676.4,2676.3,1.90978]
[1739496005144,3.2078,2677.1,2676.3,1.1626]
[1739496005331,1.622,2676.9,2676.8,0.74703]
[1739496006435,3.2078,2677.1,2676.5,6.14607896]
[1739496006628,4.8308,2677.1,2676.9,0.74702]
[1739496007134,5.57776,2677.1,2676.5,6.14607896]
[1739496007435,0.74702,2676.9,2676.6,0.74709]
[1739496007631,0.75260884,2677.0,2676.7,0.74707]
[1739496007829,0.74708,2676.7,2676.5,3.2078]
[1739496008033,0.7471,2676.6,2676.5,3.2078]
[1739496008540,2.37108,2676.7,2676.5,3.2078]
[1739496008734,1.624,2676.7,2676.5,3.2078]
[1739496008937,0.7471,2676.6,2676.5,3.2078]
[1739496009138,1.1468,2676.6,2676.0,3.2078]
[1739496009331,3.2078,2676.4,2675.7,3.21340884]
[1739496009532,1.626,2676.3,2675.7,3.21340884]
[1739496009835,2.93827896,2676.2,2675.7,3.21340884]
[1739496010037,0.74729,2676.0,2675.7,3.21340884]
[1739496010233,1.627,2675.9,2675.7,3.21340884]
[1739496011141,1.627,2675.9,2675.7,3.96075884]
[1739496011342,1.627,2675.9,2675.7,3.21340884]
[1739496011545,1.627,2675.9,2675.8,0.74732]
[1739496011852,1.627,2675.9,2675.8,1.30112]
[1739496012346,0.5481,2676.5,2676.1,0.74723]
[1739496012542,1.627,2676.4,2676.2,1.29881]
[1739496012739,3.2078,2676.7,2676.2,3.7594]
[1739496012945,1.1048,2676.8,2676.5,0.74713]
[1739496012946,0.5428,2676.8,2676.5,0.74713]
[1739496013148,1.628,2676.7,2676.6,0.7471]
[1739496013846,0.00560884,2677.0,2676.5,6.14607896]
[1739496014148,0.00560884,2677.0,2676.9,0.74702]
[1739496015843,4.8378,2677.4,2677.2,0.74692]
[1739496016346,3.2078,2677.4,2677.2,0.74692]
[1739496016539,1.56636528,2677.9,2677.2,0.74692]
[1739496016540,1.63,2677.5,2677.2,0.74692]
[1739496017538,1.63,2677.5,2677.1,6.1516878]
[1739496017846,0.00560884,2677.6,2677.5,0.74685]
[1739496017847,1.63460884,2677.6,2677.5,0.74685]
[1739496018051,0.00560884,2677.6,2677.5,0.74685]
[1739496018242,0.00560884,2677.6,2677.5,1.93355]
[1739496020849,0.00829566,2677.6,2677.5,1.93355]
[1739496023546,1.628,2678.3,2678.2,0.74664]
[1739496023946,1.628,2678.3,2677.8,6.14607896]
[1739496024148,2.37464,2678.3,2677.8,6.14607896]
[1739496024347,2.94014,2678.3,2677.9,0.74672]
[1739496024548,1.31214,2678.3,2678.0,0.7467]
[1739496024947,0.5655,2678.3,2677.8,6.14607896]
[1739496025145,0.74666,2678.2,2677.9,0.74672]
[1739496025452,0.5655,2678.3,2678.2,0.74665]
[1739496025652,1.63270329,2678.4,2678.2,0.74665]
[1739496025951,1.63270329,2678.4,2677.8,6.14607896]
[1739496026762,0.00370329,2678.4,2678.3,0.74663]
[1739496026943,0.00370329,2678.4,2678.3,1.30213]
[1739496028148,0.00370329,2678.4,2678.3,0.5555]
[1739496029146,0.00370329,2678.4,2677.9,3.2078]
[1739496029350,0.56870329,2678.4,2677.9,3.2078]
[1739496029548,1.31531329,2678.4,2678.1,0.74668]
[1739496029753,0.56870329,2678.4,2677.9,3.2078]
[1739496030248,0.56870329,2678.4,2678.3,0.74663]
[1739496030249,0.00370329,2678.4,2678.3,0.74663]
[1739496030450,0.00370329,2678.4,2678.3,1.32213]
[1739496030646,0.00370329,2678.4,2678.3,1.87553]
[1739496031449,0.00370329,2678.4,2678.3,1.1289]
[1739496031747,0.75030329,2678.4,2678.3,0.5534]
[1739496031944,0.00370329,2678.4,2678.3,0.5534]
[1739496032150,0.75030329,2678.4,2678.3,0.5534]
[1739496032448,0.00370329,2678.4,2677.9,3.7833]
[1739496032754,0.00370329,2678.4,2678.3,0.74663]
[1739496034548,0.00370329,2678.4,2678.3,3.95443]
[1739496040050,4.3525,2679.6,2678.3,13.78007896]
[1739496040255,4.3525,2679.6,2679.3,0.74633]
[1739496040454,5.09878,2679.6,2679.3,0.74633]
[1739496040655,4.3525,2679.6,2679.1,4.3567]
[1739496041054,5.09877,2679.6,2679.3,0.74634]
[1739496041556,4.3525,2679.6,2679.1,4.36229816]
[1739496041961,0.74631,2679.5,2679.2,0.74636]
[1739496042163,5.09878,2679.6,2679.3,0.74635]
[1739496042553,4.3525,2679.6,2679.4,0.74632]
[1739496042857,5.09878,2679.6,2679.3,0.74633]
[1739496043063,0.74632,2679.4,2679.2,0.5572]
[1739496043358,0.74633,2679.4,2679.2,0.5572]
[1739496043860,0.74638,2679.2,2679.1,0.00559816]
[1739496044158,4.3525,2679.6,2679.1,0.00559816]
[1739496044757,0.74632,2679.4,2679.1,0.75198816]
[1739496045159,4.3525,2679.6,2679.1,0.00559816]
[1739496045555,0.74634,2679.4,2679.1,0.00559816]
[1739496045859,0.74634,2679.4,2679.1,0.75199816]
[1739496046163,4.3525,2679.6,2679.1,0.00559816]
[1739496046661,0.74635,2679.3,2679.1,0.00559816]
[1739496047260,4.3525,2679.6,2679.1,0.00559816]
[1739496047464,0.74638,2679.2,2679.1,0.00559816]
[1739496049660,1.33638,2679.2,2679.1,0.00559816]
[1739496049859,0.59,2679.2,2679.1,0.00559816]
[1739496050667,1.33638,2679.2,2679.1,0.00559816]
[1739496059771,4.27465896,2679.2,2679.1,0.00559816]
[1739496060066,4.33552341,2679.2,2679.1,0.00559816]
[1739496060266,0.74654,2678.6,2678.5,3.2078]
[1739496060567,1.631,2678.7,2678.5,3.2078]
[1739496060770,1.1732,2679.1,2678.5,3.2078]
[1739496060970,1.633,2679.0,2678.8,0.74648]
[1739496061362,1.633,2679.0,2678.6,1.74149816]
[1739496061758,0.74646,2678.9,2678.6,1.74149816]
[1739496062068,1.633,2679.0,2678.6,1.74149816]
[1739496062264,0.74647,2678.9,2678.6,2.48801816]
[1739496062461,0.74647,2678.9,2678.7,0.74651]
[1739496063271,2.37946,2679.0,2678.7,0.74651]
[1739496063570,1.633,2679.0,2678.9,0.74646]
[1739496063766,1.1732,2679.1,2678.9,0.74646]
[1739496064073,2.8052,2679.1,2679.0,0.74643]
[1739496064271,1.1732,2679.1,2678.9,0.74644]
[1739496065267,0.59,2679.2,2679.1,0.7464]
[1739496065662,1.632,2679.3,2679.2,0.74638]
[1739496066169,0.00556258,2679.4,2679.0,2.93827896]